bitfinex-derivatives/quotes_SOLF0:USTF0_20250524
["timestamp","ask_amount","ask_price","bid_price","bid_amount"]
[1748129920993,5.67174501,176.26,176.23,0.0368478]
[1748129921192,4.501e-05,176.26,176.23,0.0368478]
[1748129921894,5.67174501,176.26,176.23,0.0368478]
[1748129923595,4.501e-05,176.26,176.23,0.0368478]
[1748129925892,5.6722,176.25,176.23,0.0368478]
[1748129926303,4.501e-05,176.26,176.23,0.0368478]
[1748129927499,5.672,176.25,176.23,0.0368478]
[1748129927804,4.501e-05,176.26,176.23,0.0368478]
[1748129928601,5.6723,176.24,176.23,0.0368478]
[1748129931004,5.6721,176.25,176.23,0.0368478]
[1748129934003,5.6723,176.24,176.23,0.0368478]
[1748129940807,5.6721,176.25,176.23,0.0368478]
[1748129941007,4.501e-05,176.26,176.24,5.6721]
[1748129941706,4.501e-05,176.26,176.25,5.672]
[1748129946113,4.501e-05,176.26,176.24,5.6723]
[1748129946415,4.501e-05,176.26,176.23,0.0368478]
[1748129949222,5.6723,176.24,176.23,0.0368478]
[1748129963736,5.6723,176.24,176.23,4.78e-05]
[1748129963943,5.6743,176.18,176.13,119.3]
[1748129964136,5.20465179,176.22,176.13,119.3]
[1748129964941,0.03712656,176.19,176.16,0.03872353]
[1748129965542,5.6746,176.17,176.16,0.03872353]
[1748129966638,5.6744,176.18,176.16,0.03872353]
[1748129967143,5.6746,176.17,176.16,0.03872353]
[1748129980253,124.92,176.17,176.03,119.24]
[1748129980448,5.20465179,176.14,176.03,119.24]
[1748129980650,5.6775,176.08,176.04,5.6787]
[1748129980849,5.20465179,176.14,176.04,5.6787]
[1748129981151,5.6775,176.08,176.04,5.6787]
[1748129981651,0.03996364,176.11,176.04,5.6787]
[1748129981850,5.6773,176.09,176.05,5.6783]
[1748129982252,0.03996364,176.11,176.05,5.6783]
[1748129982849,0.03996364,176.11,176.03,119.24]
[1748129983355,5.6777,176.08,176.05,5.6783]
[1748129984355,5.6779,176.07,176.04,5.6787]
[1748129984556,5.71819896,176.07,176.04,5.6787]
[1748129985553,5.71819896,176.07,176.05,5.6784]
[1748129985855,0.04029896,176.07,176.06,5.6781]
[1748129986462,0.04029896,176.07,176.03,119.24]
[1748129987559,0.04029896,176.07,176.05,5.6784]
[1748129989963,0.04029896,176.07,176.06,5.6781]
[1748129990761,0.04029896,176.07,176.05,5.6783]
[1748129991062,0.04029896,176.07,176.01,490.36]
[1748129991359,0.04029896,176.07,176.02,119.28]
[1748129991962,5.71809896,176.07,176.04,5.6786]
[1748129992261,0.04029896,176.07,176.02,119.28]
[1748129992670,5.679,176.04,176.02,119.28]
[1748129993159,5.24495075,176.07,175.98,125.1218]
[1748129993365,0.03815492,176.04,175.98,121.2325]
[1748129993566,0.03815492,176.04,175.98,119.3]
[1748129993859,5.68,176.01,175.98,119.3]
[1748129995064,5.68,176.01,175.98,124.9807]
[1748129995266,5.6801,176.0,175.98,119.3]
[1748129995865,5.6801,176.0,175.97,5.681]
[1748129996162,5.71734166,176.0,175.97,5.681]
[1748129996863,5.6804,175.99,175.96,5.6812]
[1748129998756,0.03724166,176.0,175.95,5.6816]
[1748129998964,0.03724166,176.0,175.94,125.1198]
[1748129999263,5.681,175.98,175.94,130.8016]
[1748129999452,5.681,175.98,175.94,125.1198]
[1748130000059,5.681,175.98,175.95,5.6817]
[1748130000466,5.681,175.97,175.94,125.1198]
[1748130000661,0.03724166,176.0,175.94,125.1198]
[1748130001262,5.6806,175.99,175.95,5.6815]
[1748130001964,5.6807,175.98,175.95,5.6815]
[1748130003062,5.20465179,175.99,175.94,119.3]
[1748130003256,5.20465179,175.99,175.9,119.2]
[1748130003459,0.04073433,175.96,175.9,119.2]
[1748130003764,0.04073433,175.96,175.93,5.6822]
[1748130003968,0.04073433,175.96,175.9,119.2]
[1748130004168,5.6817,175.95,175.92,5.6824]
[1748130004367,0.04073433,175.96,175.9,119.2]
[1748130004765,5.72213433,175.96,175.93,5.6821]
[1748130005368,0.04073433,175.96,175.94,5.682]
[1748130005869,5.6792,176.03,175.94,119.22]
[1748130006070,119.22,176.04,175.95,3.9757]
[1748130006664,5.6794,176.02,175.99,5.6801]
[1748130006869,5.72034194,176.02,175.99,5.72305486]
[1748130010369,5.68,176.01,175.99,0.04295486]
[1748130011063,5.72044194,176.02,175.99,5.72325486]
[1748130011565,0.04094194,176.02,176.0,5.68]
[1748130012569,5.72034194,176.02,176.0,5.68]
[1748130012768,0.04094194,176.02,176.01,5.6797]
[1748130014269,119.22,176.08,176.04,5.6786]
[1748130014470,119.22,176.08,176.0,3.8578]
[1748130015073,5.6781,176.06,176.03,5.6789]
[1748130015271,0.03723511,176.06,176.03,0.04069036]
[1748130016574,0.03723511,176.06,176.03,5.71959036]
[1748130017672,5.71543511,176.06,176.03,5.71959036]
[1748130017874,0.03723511,176.06,176.03,0.04069036]
[1748130019578,5.6785,176.05,176.03,0.04069036]
[1748130021578,0.03723511,176.06,176.03,0.04069036]
[1748130022482,0.03723511,176.06,176.04,5.6786]
[1748130024379,0.03723511,176.06,176.05,5.6785]
[1748130025380,0.03723511,176.06,176.04,5.6786]
[1748130026684,0.03723511,176.06,176.05,5.6785]
[1748130035497,0.03723511,176.06,176.05,7.58]
[1748130038200,0.03723511,176.06,176.05,1.9015]
[1748130038495,0.03723511,176.06,176.04,5.6785]
[1748130039302,0.03723511,176.06,176.05,5.6785]
[1748130046302,3.511e-05,176.06,176.05,5.6785]
[1748130062017,3.511e-05,176.06,176.04,5.6785]
[1748130062316,3.511e-05,176.06,176.03,0.04069036]
[1748130062817,3.511e-05,176.06,176.04,5.6787]
[1748130063718,3.511e-05,176.06,176.05,5.6784]
[1748130072425,7.01697697,176.14,176.11,5.6764]
[1748130072617,7.01697697,176.14,176.09,118.76]
[1748130073316,5.6767,176.11,176.09,118.76]
[1748130073620,0.04333778,176.13,176.1,0.04212775]
[1748130074020,5.71943778,176.13,176.1,0.04212775]
[1748130075023,0.04333778,176.13,176.1,0.04212775]
[1748130076228,5.71923778,176.13,176.1,5.71892775]
[1748130076525,0.04333778,176.13,176.1,5.71892775]
[1748130077629,0.04333778,176.13,176.11,5.6765]
[1748130077830,0.04333778,176.13,176.1,0.04212775]
[1748130079520,0.04333778,176.13,176.11,5.6763]
[1748130080326,5.71923778,176.13,176.11,5.6763]
[1748130080532,5.71923778,176.13,176.1,5.71882775]
[1748130081430,0.04333778,176.13,176.1,0.04212775]
[1748130081632,3.34437542,176.11,176.05,118.76]
[1748130081831,3.34437542,176.09,176.05,118.76]
[1748130082031,5.6781,176.06,176.05,118.76]
[1748130082427,3.34437542,176.07,176.05,118.76]
[1748130082630,9.02227542,176.07,176.05,118.76]
[1748130083631,5.6779,176.07,176.05,118.76]
[1748130084432,5.71571714,176.08,176.05,124.4384]
[1748130085336,5.6778,176.07,176.05,124.4384]
[1748130085634,0.03811714,176.08,176.05,124.4384]
[1748130086329,5.71581714,176.08,176.05,124.4384]
[1748130086529,0.03811714,176.08,176.05,118.76]
[1748130087034,0.03811714,176.08,176.05,124.4384]
[1748130087236,0.03811714,176.08,176.05,118.76]
[1748130087529,5.6784,176.05,176.04,0.03700814]
[1748130092451,5.6779,176.07,176.04,0.03700814]
[1748130092743,5.6779,176.07,176.04,5.71550814]
[1748130092955,5.71571714,176.08,176.04,0.03700814]
[1748130093252,0.03811714,176.08,176.04,0.03700814]
[1748130093450,5.678,176.07,176.04,5.71570814]
[1748130093956,0.03811714,176.08,176.04,0.03700814]
[1748130094145,5.6779,176.07,176.04,0.03700814]
[1748130098856,0.03811714,176.08,175.97,3.22092542]
[1748130099155,5.22705592,176.05,175.97,3.22092542]
[1748130099459,5.6807,175.98,175.97,3.22092542]
[1748130100452,5.681,175.97,175.96,0.03898732]
[1748130102559,5.6808,175.98,175.96,0.03898732]
[1748130103058,0.03962038,175.99,175.96,0.03898732]
[1748130104665,0.03962038,175.99,175.97,118.58]
[1748130106658,0.03962038,175.99,175.97,124.2609]
[1748130107156,0.03962038,175.99,175.98,5.6807]
[1748130113261,0.03962038,175.99,175.98,7.5949]
[1748130116570,2.038e-05,175.99,175.98,7.5949]
[1748130116771,3.9139,176.09,176.04,5.6787]
[1748130116960,3.9139,176.09,176.04,124.2587]
[1748130117255,5.6777,176.08,176.04,124.2587]
[1748130117668,5.71382424,176.08,176.04,124.29800861]
[1748130117964,5.71382424,176.08,176.05,5.6784]
[1748130118166,0.03612424,176.08,176.04,118.61930861]
[1748130118366,0.03612424,176.08,176.07,5.6778]
[1748130118971,0.03612424,176.08,176.04,226.55930861]
[1748130120273,0.03612424,176.08,176.07,5.6778]
[1748130122269,0.03612424,176.08,176.06,5.678]
[1748130122466,0.03612424,176.08,176.04,226.55930861]
[1748130122971,0.03612424,176.08,176.07,5.6778]
[1748130127569,2.424e-05,176.08,176.07,5.6778]
[1748130127762,118.58,176.17,176.12,5.6759]
[1748130127966,5.7964,176.19,176.12,5.6759]
[1748130128166,5.6751,176.16,176.12,5.6759]
[1748130128769,0.04180623,176.16,176.12,0.03581088]
[1748130129778,0.04180623,176.16,176.15,5.6752]
[1748130129968,0.04180623,176.16,176.15,124.1552]
[1748130132174,7.01697697,176.25,176.19,5.6737]
[1748130132478,7.01697697,176.25,176.15,123.70705592]
[1748130132667,5.6726,176.24,176.16,118.46]
[1748130132873,5.6726,176.24,176.19,5.6737]
[1748130133272,0.03741628,176.23,176.2,0.04021797]
[1748130133470,0.03741628,176.23,176.2,5.71381797]
[1748130133673,0.03741628,176.23,176.2,118.48021797]
[1748130134179,0.03741628,176.23,176.21,5.6731]
[1748130135082,0.03741628,176.23,176.2,124.15371797]
[1748130135583,0.03741628,176.23,176.2,118.48021797]
[1748130135776,0.03741628,176.23,176.21,5.6732]
[1748130138580,0.03741628,176.23,176.2,118.48021797]
[1748130139776,5.71021628,176.23,176.2,124.15391797]
[1748130140487,0.03741628,176.23,176.2,118.48021797]
[1748130141283,0.03741628,176.23,176.2,0.04021797]
[1748130142385,5.6736,176.21,176.2,0.04021797]
[1748130143686,5.6757,176.14,176.11,109.7128]
[1748130143984,5.6757,176.14,176.12,118.4]
[1748130144179,8.94415592,176.24,176.12,118.4]
[1748130144381,5.6759,176.13,176.12,118.4]
[1748130144692,0.04226904,176.14,176.11,0.04175935]
[1748130144888,0.03984423,176.14,176.11,0.04175935]
[1748130145592,5.6762,176.12,176.11,0.04175935]
[1748130148688,0.03984423,176.14,176.06,118.42]
[1748130148989,124.1359,176.16,176.06,118.42]
[1748130149187,5.6771,176.1,176.06,118.42]
[1748130149586,5.6771,176.1,176.06,124.13855954]
[1748130149587,0.0389204,176.1,176.06,124.13855954]
[1748130149886,0.0389204,176.1,176.06,118.46045954]
[1748130150387,0.0389204,176.1,176.07,5.6777]
[1748130150590,0.0389204,176.1,176.06,118.46045954]
[1748130151794,0.0389204,176.1,176.09,5.6772]
[1748130152986,0.0389204,176.1,176.08,5.6774]
[1748130154289,0.0389204,176.1,176.09,5.6772]
[1748130155991,0.0389204,176.1,176.08,5.6774]
[1748130157088,0.0389204,176.1,176.06,124.13825954]
[1748130157288,0.0389204,176.1,176.06,118.46045954]
[1748130157490,5.7159204,176.1,176.06,118.46045954]
[1748130157794,5.7159204,176.1,176.07,5.6778]
[1748130158294,0.0389204,176.1,176.07,5.6778]
[1748130158495,0.0389204,176.1,176.06,118.46045954]
[1748130159690,5.7158204,176.1,176.07,5.6776]
[1748130159999,0.0389204,176.1,176.06,118.46045954]
[1748130160295,0.0389204,176.1,176.09,5.6772]
[1748130163799,0.0389204,176.1,176.06,118.46045954]
[1748130164399,5.6772,176.09,176.06,124.13845954]
[1748130165398,0.0389204,176.1,176.06,124.13845954]
[1748130165896,5.6772,176.09,176.06,124.13845954]
[1748130166296,0.0389204,176.1,176.06,118.46045954]
[1748130166499,0.0389204,176.1,176.06,0.04045954]
[1748130167607,5.6778,176.07,176.06,0.04045954]
[1748130171605,0.0389204,176.1,176.06,0.04045954]
[1748130173307,0.0389204,176.1,176.09,5.6772]
[1748130174710,0.0389204,176.1,176.08,5.6773]
[1748130175210,0.0389204,176.1,176.09,5.6772]
[1748130176208,0.0389204,176.1,176.06,0.04045954]
[1748130176509,5.26597632,176.1,176.06,0.04045954]
[1748130176704,5.6778,176.07,176.06,0.04045954]
[1748130180413,5.6777,176.08,176.06,0.04045954]
[1748130181617,5.6778,176.07,176.06,0.04045954]
[1748130182115,5.6775,176.08,176.06,0.04045954]
[1748130182316,0.0389204,176.1,176.06,0.04045954]
[1748130184113,5.7158204,176.1,176.07,5.6776]
[1748130185219,5.7158204,176.1,176.06,5.71845954]
[1748130185419,5.6772,176.09,176.06,5.71845954]
[1748130186420,5.7158204,176.1,176.06,5.71845954]
[1748130186722,0.0389204,176.1,176.06,5.71845954]
[1748130187017,0.0389204,176.1,176.07,5.6777]
[1748130188018,5.7160204,176.1,176.07,5.6777]
[1748130189223,0.0389204,176.1,176.09,5.6772]
[1748130190827,0.0389204,176.1,176.06,118.72045954]
[1748130191828,0.0389204,176.1,176.06,0.04045954]
[1748130193024,5.6778,176.07,176.06,0.04045954]
[1748130200537,5.6776,176.08,176.06,0.04045954]
[1748130200727,0.0389204,176.1,176.06,0.04045954]
[1748130201236,5.6778,176.07,176.06,0.04045954]
[1748130209130,7.05589737,176.1,176.06,0.04045954]
[1748130209131,5.6778,176.08,176.06,0.04045954]
[1748130209534,7.05589737,176.1,176.06,0.04045954]
[1748130209738,5.6778,176.07,176.06,0.04045954]
[1748130217448,5.6778,176.07,176.06,5.954e-05]
[1748130221957,5.6797,176.02,175.99,5.6802]
[1748130222144,5.22705592,176.07,175.98,124.0806]
[1748130222350,7.16535592,176.07,175.98,124.0806]
[1748130222648,5.68,176.01,175.98,118.4]
[1748130222854,5.68,176.01,175.97,5.6809]
[1748130223047,5.72237427,176.01,175.97,5.72374575]
[1748130223247,5.6801,176.0,175.97,5.72374575]
[1748130227150,5.6801,176.0,175.97,0.04294575]
[1748130227350,5.6806,175.99,175.97,0.04294575]
[1748130227547,0.04237427,176.01,175.97,0.04294575]
[1748130227850,118.42,176.0,175.97,0.04294575]
[1748130228151,5.6807,175.98,175.97,0.04294575]
[1748130228549,5.6807,175.98,175.97,4.575e-05]
[1748130228758,5.6825,175.93,175.9,118.42]
[1748130229755,5.72526446,175.93,175.9,118.42]
[1748130230160,0.04276446,175.93,175.87,1.9886]
[1748130230655,5.683,175.91,175.86,129.23532542]
[1748130230852,5.683,175.91,175.86,126.0144]
[1748130231152,5.6838,175.89,175.86,118.44]
[1748130231361,0.04253684,175.89,175.82,122.3329]
[1748130232858,5.72623684,175.89,175.82,122.3329]
[1748130233357,0.04253684,175.89,175.84,5.6852]
[1748130233561,0.04253684,175.89,175.8,1.8704]
[1748130233755,118.46,175.88,175.8,1.8704]
[1748130234053,118.46,175.88,175.81,5.686]
[1748130234459,5.6848,175.86,175.81,5.686]
[1748130234663,0.03595406,175.85,175.81,5.686]
[1748130235056,0.03595406,175.85,175.82,5.6858]
[1748130236169,0.03595406,175.85,175.84,5.6852]
[1748130237658,0.03595406,175.85,175.83,5.6854]
[1748130238366,0.03595406,175.85,175.82,124.1658]
[1748130238859,0.03595406,175.85,175.83,5.6855]
[1748130239563,0.03595406,175.85,175.82,118.48]
[1748130239564,0.03595406,175.85,175.84,5.6852]
[1748130240967,118.48,175.92,175.83,3.9216]
[1748130241861,5.6845,175.87,175.86,0.03693764]
[1748130245467,5.6845,175.87,175.86,3.764e-05]
[1748130252763,5.6862,175.81,175.78,5.6871]
[1748130253670,5.6862,175.81,175.77,5.6874]
[1748130253858,0.03873857,175.81,175.76,121.3399]
[1748130254268,0.03873857,175.81,175.74,5.6884]
[1748130254664,5.6878,175.77,175.73,5.6885]
[1748130254864,5.73154933,175.77,175.72,1.9282]
[1748130255174,0.04374933,175.77,175.72,1.9282]
[1748130255774,5.73154933,175.77,175.73,5.6885]
[1748130256675,5.73154933,175.77,175.74,5.6884]
[1748130256974,0.04374933,175.77,175.72,1.9282]
[1748130257579,0.04374933,175.77,175.72,7.15525592]
[1748130257783,119.5,175.84,175.73,1.8652]
[1748130258072,5.22705592,175.82,175.73,1.8652]
[1748130258565,5.687,175.79,175.75,5.6881]
[1748130258766,0.04365146,175.79,175.75,5.72555749]
[1748130258965,0.04365146,175.79,175.75,0.03745749]
[1748130259870,5.6878,175.76,175.75,0.03745749]
[1748130260170,0.04365146,175.79,175.75,0.03745749]
[1748130260371,5.6878,175.76,175.75,0.03745749]
[1748130262276,0.04365146,175.79,175.75,0.03745749]
[1748130263679,5.6878,175.76,175.75,0.03745749]
[1748130265776,0.04365146,175.79,175.75,0.03745749]
[1748130266781,5.6877,175.77,175.75,0.03745749]
[1748130267381,5.6878,175.76,175.75,0.03745749]
[1748130267573,0.04365146,175.79,175.75,0.03745749]
[1748130268477,5.6877,175.77,175.75,0.03745749]
[1748130269979,5.6878,175.76,175.75,0.03745749]
[1748130277678,5.6878,175.76,175.75,5.749e-05]
[1748130278686,5.6901,175.69,175.68,2.0061]
[1748130278985,5.22705592,175.75,175.68,2.0061]
[1748130279284,5.22705592,175.75,175.62,3.22092542]
[1748130279485,5.22705592,175.72,175.62,3.22092542]
[1748130279675,5.6909,175.67,175.62,3.22092542]
[1748130280081,5.6909,175.67,175.63,5.6919]
[1748130280286,0.03763927,175.69,175.62,3.22092542]
[1748130281389,0.03763927,175.69,175.61,125.9624]
[1748130282489,5.6911,175.66,175.63,5.6918]
[1748130282690,0.03763927,175.69,175.61,125.9624]
[1748130282894,0.03923757,175.67,175.61,125.9624]
[1748130283191,5.6916,175.65,175.62,5.6922]
[1748130284492,5.6912,175.66,175.63,5.692]
[1748130284992,0.03923757,175.67,175.61,125.9624]
[1748130286388,0.03923757,175.67,175.63,5.6917]
[1748130286389,5.6911,175.66,175.63,5.6917]
[1748130287595,5.6914,175.65,175.63,5.6917]
[1748130287805,5.6914,175.65,175.62,5.6922]
[1748130288899,5.6914,175.65,175.63,5.692]
[1748130289285,0.03923757,175.67,175.61,125.9624]
[1748130290403,5.691,175.66,175.63,5.6917]
[1748130290592,0.03923757,175.67,175.61,120.08]
[1748130290897,5.692,175.63,175.61,120.08]
[1748130293197,0.03923757,175.67,175.61,125.7724]
[1748130293402,0.03923757,175.67,175.61,120.08]
[1748130294500,5.6917,175.64,175.61,125.7726]
[1748130294697,0.03923757,175.67,175.57,120.14]
[1748130294904,0.03667896,175.64,175.57,120.14]
[1748130295199,5.6921,175.63,175.57,120.14]
[1748130295794,5.6921,175.63,175.59,5.6931]
[1748130296199,0.03667896,175.64,175.62,5.6923]
[1748130296502,0.03667896,175.64,175.57,120.14]
[1748130296799,5.72847896,175.64,175.57,120.14]
[1748130297301,5.72847896,175.64,175.6,5.6927]
[1748130297602,5.692,175.63,175.57,120.14]
[1748130297998,0.03667896,175.64,175.57,120.14]
[1748130298301,5.6926,175.62,175.57,120.14]
[1748130298502,5.6926,175.62,175.58,5.6936]
[1748130298802,5.6927,175.61,175.58,5.6936]
[1748130299201,5.693,175.6,175.57,125.8339]
[1748130299505,0.03906901,175.6,175.55,3.909]
[1748130299704,5.6943,175.56,175.55,3.909]
[1748130299900,0.03906901,175.6,175.53,120.14]
[1748130300098,0.03958487,175.58,175.53,120.14]
[1748130300301,5.6947,175.55,175.53,120.14]
[1748130300502,0.03958487,175.58,175.51,3.22092542]
[1748130301003,5.6945,175.56,175.51,5.6959]
[1748130301209,0.03958487,175.58,175.5,1.9961]
[1748130301399,5.6944,175.56,175.51,5.6957]
[1748130301600,5.6944,175.56,175.5,1.9961]
[1748130301800,0.03958487,175.58,175.5,1.9961]
[1748130302007,5.6942,175.57,175.52,5.6954]
[1748130302401,0.03958487,175.58,175.5,1.9961]
[1748130303409,0.03958487,175.58,175.5,7.22315592]
[1748130303610,0.03958487,175.58,175.5,1.9961]
[1748130303811,0.03958487,175.58,175.57,5.694]
[1748130305705,0.03958487,175.58,175.56,5.8614]
[1748130305908,0.03958487,175.58,175.5,125.8014]
[1748130306908,5.73328487,175.58,175.5,125.8014]
[1748130307211,0.03958487,175.58,175.5,125.8014]
[1748130307614,0.03958487,175.58,175.57,5.694]
[1748130316913,8.487e-05,175.58,175.57,10.92105592]
[1748130317218,119.94,175.71,175.57,119.10705592]
[1748130317419,119.94,175.71,175.58,125.7549]
[1748130317619,5.6907,175.67,175.64,5.6916]
[1748130318020,5.72819025,175.67,175.64,5.72827831]
[1748130321723,0.03749025,175.67,175.66,5.691]
[1748130321923,0.03749025,175.67,175.66,125.611]
[1748130322122,7.07354294,175.74,175.66,119.92]
[1748130322323,5.6889,175.73,175.69,5.6898]
[1748130322621,7.07354294,175.74,175.66,119.92]
[1748130323017,5.6899,175.7,175.66,119.92]
[1748130323321,5.6899,175.7,175.68,0.03744363]
[1748130323524,5.6901,175.69,175.68,0.03744363]
[1748130327128,5.6922,175.63,175.61,119.9]
[1748130328525,0.03851549,175.64,175.61,119.9]
[1748130328828,0.03851549,175.64,175.61,125.5926]
[1748130329226,5.73041549,175.64,175.61,119.9]
[1748130329626,0.03851549,175.64,175.61,119.9]
[1748130330035,0.03851549,175.64,175.61,125.5924]
[1748130330731,0.03851549,175.64,175.61,119.9]
[1748130331229,0.03851549,175.64,175.63,5.692]
[1748130331929,0.03851549,175.64,175.62,5.6922]
[1748130332329,0.03851549,175.64,175.61,119.9]
[1748130332529,0.03851549,175.64,175.63,5.692]
[1748130333140,0.03851549,175.64,175.62,5.6922]
[1748130334038,0.03851549,175.64,175.61,119.9]
[1748130334543,0.03851549,175.64,175.62,5.6921]
[1748130337238,0.03851549,175.64,175.63,5.692]
[1748130337542,0.03851549,175.64,175.61,119.9]
[1748130338742,0.03851549,175.64,175.62,5.6923]
[1748130341546,0.03851549,175.64,175.63,5.692]
[1748130345142,0.03851549,175.64,175.62,5.6921]
[1748130345339,0.03851549,175.64,175.61,119.9]
[1748130345740,0.03851549,175.64,175.61,125.5924]
[1748130345942,0.03851549,175.64,175.61,119.9]
[1748130346444,0.03851549,175.64,175.61,125.5925]
[1748130346645,0.03851549,175.64,175.61,119.9]
[1748130347139,0.03851549,175.64,175.62,5.6921]
[1748130349449,0.03851549,175.64,175.63,5.692]
[1748130349749,0.03851549,175.64,175.61,119.9]
[1748130349941,0.03851549,175.64,175.62,5.6921]
[1748130350549,0.03851549,175.64,175.61,125.5925]
[1748130351051,5.73041549,175.64,175.61,119.9]
[1748130351448,0.03851549,175.64,175.61,119.9]
[1748130351748,5.6921,175.63,175.61,119.9]
[1748130351944,0.03851549,175.64,175.61,119.9]
[1748130352347,5.73041549,175.64,175.61,119.9]
[1748130353652,5.73041549,175.64,175.61,125.5926]
[1748130353952,0.03851549,175.64,175.61,125.5926]
[1748130359149,0.03851549,175.64,175.62,5.6923]
[1748130359451,0.03851549,175.64,175.6,0.04208115]
[1748130360053,5.73031549,175.64,175.6,0.04208115]
[1748130360242,5.73031549,175.64,175.6,5.73488115]
[1748130360447,5.73031549,175.64,175.6,0.04208115]
[1748130360752,0.03851549,175.64,175.6,0.04208115]
[1748130361050,0.03851549,175.64,175.61,119.36]
[1748130362451,0.03851549,175.64,175.63,5.692]
[1748130363650,0.03851549,175.64,175.63,113.852]
[1748130363856,7.07354294,175.71,175.63,113.38705592]
[1748130364153,7.07354294,175.71,175.66,5.22705592]
[1748130364354,7.07354294,175.71,175.69,5.6898]
[1748130364663,7.07354294,175.71,175.67,119.36]
[1748130364857,7.07354294,175.71,175.68,0.03965606]
[1748130365255,5.69,175.7,175.68,0.03965606]
[1748130366155,5.6895,175.71,175.68,0.03965606]
[1748130366356,0.03764548,175.72,175.68,0.03965606]
[1748130367255,5.6895,175.71,175.68,0.03965606]
[1748130368655,5.6899,175.7,175.68,0.03965606]
[1748130369754,5.6895,175.71,175.68,0.03965606]
[1748130370657,5.6897,175.7,175.68,0.03965606]
[1748130371352,5.6895,175.71,175.68,0.03965606]
[1748130371754,0.03764548,175.72,175.68,0.03965606]
[1748130372053,5.6895,175.71,175.68,0.03965606]
[1748130373056,0.03764548,175.72,175.68,0.03965606]
[1748130373057,5.6897,175.7,175.68,0.03965606]
[1748130373851,5.6895,175.71,175.68,0.03965606]
[1748130375256,0.03764548,175.72,175.68,0.03965606]
[1748130375759,0.03764548,175.72,175.69,5.6898]
[1748130376054,0.03764548,175.72,175.68,0.03965606]
[1748130376356,0.03764548,175.72,175.7,5.6897]
[1748130377559,0.03764548,175.72,175.69,5.6899]
[1748130378753,0.03764548,175.72,175.68,0.03965606]
[1748130379460,5.6899,175.7,175.68,0.03965606]
[1748130381455,0.03764548,175.72,175.68,0.03965606]
[1748130381456,5.6901,175.69,175.68,0.03965606]
[1748130383255,5.6898,175.7,175.68,0.03965606]
[1748130383562,7.11118842,175.72,175.68,0.03965606]
[1748130383961,5.6901,175.69,175.68,0.03965606]
[1748130389963,5.6919,175.64,175.59,610.56]
[1748130390158,127.78575592,175.69,175.59,610.56]
[1748130390470,127.78575592,175.69,175.6,5.6927]
[1748130390669,5.6922,175.63,175.6,5.6927]
[1748130391164,5.6926,175.61,175.6,0.04236153]
[1748130395265,9.0371237,175.63,175.47,7.22092542]
[1748130395472,5.22705592,175.59,175.51,5.6958]
[1748130395865,5.6948,175.55,175.51,5.6958]
[1748130396062,5.22705592,175.59,175.5,5.6961]
[1748130396466,0.03747577,175.56,175.48,118.84]
[1748130397067,5.6952,175.53,175.48,118.84]
[1748130397267,0.04319954,175.52,175.48,118.84]
[1748130397667,0.04319954,175.52,175.49,5.6965]
[1748130398169,5.6967,175.49,175.45,5.6976]
[1748130398375,5.6967,175.49,175.43,610.6]
[1748130398567,0.04235653,175.48,175.43,610.6]
[1748130398772,0.04235653,175.48,175.44,5.6981]
[1748130399284,0.04235653,175.48,175.4,3.22092542]
[1748130399285,5.22705592,175.45,175.4,3.22092542]
[1748130399575,0.04359748,175.44,175.4,3.22092542]
[1748130399772,5.6991,175.41,175.4,3.22092542]
[1748130400774,118.86359748,175.44,175.4,3.22092542]
[1748130401176,5.6986,175.43,175.4,3.22092542]
[1748130401476,118.86359748,175.44,175.4,3.22092542]
[1748130401874,118.86359748,175.44,175.33,122.6757]
[1748130402175,0.03756273,175.4,175.33,122.6757]
[1748130402776,0.03756273,175.4,175.34,5.7011]
[1748130403267,0.03756273,175.4,175.33,122.6757]
[1748130404968,0.03756273,175.4,175.36,5.7008]
[1748130405172,0.03756273,175.4,175.33,122.6757]
[1748130405371,0.03756273,175.4,175.37,5.7004]
[1748130405563,0.03756273,175.4,175.33,122.6757]
[1748130405969,0.03756273,175.4,175.37,5.7002]
[1748130406264,0.03756273,175.4,175.33,122.6757]
[1748130407476,0.03756273,175.4,175.33,127.90275592]